fUST/lending_fUST_20251117
["ID","MTS","AMOUNT","RATE_DAILY","PERIOD"]
[394190835,1763367041765,-1000.0,0.00017521,2]
[394190836,1763367041775,-500.0,0.0001758,2]
[394190837,1763367041786,-160.0,0.00017662,2]
[394190838,1763367041796,-500.0,0.00017854,2]
[394190839,1763367041806,-1582.11436431,0.00017868,2]
[394190840,1763367041816,-1185.90415884,0.00017868,2]
[394190841,1763367041825,-1517.26996116,0.00017868,2]
[394190842,1763367041835,-513.64025914,0.00017868,2]
[394190843,1763367041845,-524.87998137,0.00017868,2]
[394190844,1763367041855,-220.0,0.000179,2]
[394190845,1763367041867,-1016.64132678,0.00018068,2]
[394190846,1763367041876,-1500.0,0.00018068,2]
[394190847,1763367041886,-1500.0,0.00018068,2]
[394190848,1763367041896,-1004.37558909,0.00018068,2]
[394190849,1763367041906,-3811.96,0.00018116,3]
[394190850,1763367041915,-1905.98,0.00018116,3]
[394190851,1763367041924,-953.0,0.00018116,3]
[394190852,1763367041933,-476.5,0.00018116,3]
[394190853,1763367041943,-500.0,0.00018128,2]
[394190854,1763367041952,-7623.92,0.00018132,3]
[394190855,1763367041962,-222.0,0.00018185,2]
[394190856,1763367041972,-420.0,0.00018185,2]
[394190857,1763367041982,-260.0,0.0001821,2]
[394190858,1763367041991,-1680.0,0.00018215,2]
[394190859,1763367042000,-1680.0,0.00018276,2]
[394190860,1763367042010,-500.0,0.00018402,2]
[394190861,1763367042020,-177.0,0.000186,2]
[394190862,1763367042029,-1855.51592409,0.00018616,2]
[394190863,1763367042039,-2000.0,0.00018616,2]
[394190864,1763367042049,-500.0,0.00018676,2]
[394190865,1763367042059,-360.0,0.00018758,2]
[394190866,1763367042070,-302.54622906,0.000189,2]
[394190867,1763367042080,-720.0,0.00018928,2]
[394190868,1763367042090,-500.0,0.0001895,2]
[394190869,1763367042100,-302.54622906,0.00019089,2]
[394190870,1763367042111,-1931.38695596,0.00019164,2]
[394190871,1763367042122,-500.0,0.00019224,2]
[394190872,1763367042132,-480.02152452,0.00019275,2]
[394190873,1763367042143,-453.71363212,0.00019278,2]
[394190874,1763367042156,-460.0,0.00019306,2]
[394190875,1763367042167,-500.0,0.00019498,2]
[394190876,1763367042177,-500.0,0.00019772,2]
[394190877,1763367042186,-560.0,0.00019854,2]
[394190878,1763367042196,-587.0,0.0001987,2]
[394190879,1763367042206,-551.0,0.00019901,2]
[394190880,1763367042216,-1152.0,0.0002,2]
[394190881,1763367042224,-2000.0,0.0002,7]
[394190882,1763367042233,-500.0,0.00020046,2]
[394190883,1763367042242,-1924.0,0.00020068,2]
[394190884,1763367042251,-500.0,0.0002032,2]
[394190885,1763367042261,-660.0,0.00020402,2]
[394190886,1763367042270,-151.0,0.00020548,7]
[394190887,1763367042279,-151.0,0.00020548,7]
[394190888,1763367042288,-151.0,0.00020548,7]
[394190889,1763367042298,-151.0,0.00020548,7]
[394190890,1763367042308,-500.0,0.00020594,2]
[394190891,1763367042321,-204.0,0.000206,2]
[394190892,1763367042331,-864.0,0.0002082,2]
[394190893,1763367042341,-500.0,0.00020868,2]
[394190894,1763367042352,-760.0,0.0002095,2]
[394190895,1763367042362,-400.67432439,0.00021,10]
[394190896,1763367042371,-30836.20238302,0.00021,10]
[394190897,1763367042381,-500.0,0.00021142,2]
[394190898,1763367042390,-500.0,0.00021416,2]
[394190899,1763367042469,-860.0,0.00021498,2]
[394190900,1763367042479,-395.03358643,0.0002169,2]
[394190901,1763367042489,-823.0,0.0002171,2]
[394190902,1763367042498,-480.02152452,0.00021788,2]
[394190903,1763367042508,-500.0,0.00021917,2]
[394190904,1763367042518,-151.0,0.00021918,2]
[394190905,1763367042527,-151.0,0.00021918,2]
[394190906,1763367042536,-151.0,0.00021918,2]
[394190907,1763367042546,-500.0,0.00021975,2]
[394190908,1763367042555,-500.0,0.00021975,2]
[394190909,1763367042564,-960.0,0.00022046,2]
[394190910,1763367042575,-333.94,0.000221,7]
[394190911,1763367042584,-325.28,0.000221,14]
[394190912,1763367042594,-15381.29,0.000221,7]
[394190913,1763367042603,-500.0,0.000221,2]
[394190914,1763367042612,-1001.47190717,0.00022523,2]
[394190915,1763367042621,-1060.0,0.00022594,2]
[394190916,1763367042631,-231.0,0.000226,2]
[394190917,1763367042644,-274.0948081,0.00022648,2]
[394190918,1763367042654,-1000.0,0.00022902,20]
[394190919,1763367042664,-500.0,0.00023013,2]
[394190920,1763367042672,-863.32266703,0.00023142,2]
[394190921,1763367042680,-1152.0,0.00023721,2]
[394190922,1763367042689,-500.0,0.00024109,2]
[394190923,1763367042699,-480.02152452,0.000243,2]
[394190924,1763367042708,-258.0,0.000246,2]
[394190925,1763367042718,-500.0,0.00024773,2]
[394190926,1763367042727,-500.0,0.00024773,2]
[394190927,1763367042737,-12962.04999538,0.00024798,2]
[394190928,1763367042747,-151.0,0.000248,2]
[394190929,1763367042756,-151.0,0.000248,2]
[394190930,1763367042766,-151.0,0.000248,2]
[394190931,1763367042776,-151.0,0.000248,7]
[394190932,1763367042785,-151.0,0.000248,7]
[394190933,1763367042795,-151.0,0.000248,7]
[394190934,1763367042804,-172.739957,0.000248,7]
[394190935,1763367042814,-151.0,0.000248,7]
[394190936,1763367042824,-151.0,0.000248,7]
[394190937,1763367042833,-151.0,0.000248,7]
[394190938,1763367042843,-229.347791,0.000248,7]
[394190939,1763367042854,-229.347791,0.000248,7]
[394190940,1763367042863,-229.347791,0.000248,7]
[394190941,1763367042873,-229.347791,0.000248,7]
[394190942,1763367042883,-151.0,0.000248,7]
[394190943,1763367042893,-151.0,0.000248,7]
[394190944,1763367042902,-157.673838,0.000248,7]
[394190945,1763367042912,-151.0,0.000248,7]
[394190946,1763367042922,-435.59980476,0.00024873,2]
[394190947,1763367042933,-503.85554989,0.00024873,2]
[394190948,1763367042944,-500.0,0.00024873,2]
[394190949,1763367042955,-500.0,0.00024873,2]
[394190950,1763367042965,-150.0,0.00024873,2]
[394190951,1763367042974,-445.08248483,0.00024873,2]
[394190952,1763367042983,-500.0,0.00024873,2]
[394190953,1763367042992,-500.0,0.00024873,2]
[394190954,1763367043002,-169.58130387,0.00024873,2]
[394190955,1763367043011,-502.86159398,0.00024873,2]
[394190956,1763367043021,-500.0,0.00024873,2]
[394190957,1763367043031,-500.0,0.00024873,2]
[394190958,1763367043041,-500.0,0.00024873,2]
[394190959,1763367043050,-500.0,0.00024873,2]
[394190961,1763367043060,-500.0,0.00024873,2]
[394190963,1763367043070,-500.0,0.00024873,2]
[394190966,1763367043079,-500.0,0.00024873,2]
[394190967,1763367043089,-500.0,0.00024873,2]
[394190968,1763367043098,-500.0,0.00024873,2]
[394190969,1763367043107,-500.0,0.00024873,2]
[394190970,1763367043117,-500.0,0.00024873,2]
[394190971,1763367043127,-500.0,0.00024873,2]
[394190972,1763367043137,-249.43248286,0.00024873,2]
[394190973,1763367043147,-500.0,0.00024873,2]
[394190974,1763367043157,-500.0,0.00024873,2]
[394190975,1763367043167,-500.0,0.00024873,2]
[394190976,1763367043177,-507.23857365,0.00024873,2]
[394190977,1763367043187,-323665.1885694,0.00024898,2]
[394190978,1763367043196,-151.0,0.00024898,7]
[394190979,1763367043206,-151.0,0.00024898,7]
[394190980,1763367043215,-151.0,0.00024898,7]
[394190981,1763367043225,-157.559401,0.00024898,7]
[394190982,1763367043238,-151.0,0.00024898,7]
[394190983,1763367043247,-151.0,0.00024898,7]
[394190984,1763367043257,-151.0,0.00024898,7]
[394190985,1763367043266,-151.0,0.00024898,7]
[394190987,1763367043276,-483.010201,0.00024898,7]
[394190989,1763367043286,-483.010201,0.00024898,7]
[394190991,1763367043296,-483.010201,0.00024898,7]
[394190993,1763367043305,-483.010201,0.00024898,7]
[394190995,1763367043314,-151.0,0.00024898,7]
[394190997,1763367043325,-151.0,0.00024898,7]
[394190998,1763367043335,-151.0,0.00024898,7]
[394190999,1763367043344,-151.0,0.00024898,7]
[394191000,1763367043353,-151.0,0.00024898,7]
[394191001,1763367043363,-151.0,0.00024898,7]
[394191002,1763367043373,-200.802667,0.00024898,7]
[394191003,1763367043383,-151.0,0.000249,7]
[394191004,1763367043392,-151.0,0.000249,7]
[394191005,1763367043402,-151.0,0.000249,7]
[394191006,1763367043411,-151.0,0.000249,7]
[394191007,1763367043421,-151.0,0.000249,7]
[394191008,1763367043431,-151.0,0.000249,7]
[394191009,1763367043442,-483.010201,0.000249,7]
[394191010,1763367043452,-483.010201,0.000249,7]
[394191011,1763367043461,-483.010201,0.000249,7]
[394191012,1763367043471,-483.010201,0.000249,7]
[394191013,1763367043481,-151.0,0.000249,7]
[394191014,1763367043490,-151.0,0.000249,7]
[394191015,1763367043499,-151.0,0.000249,7]
[394191016,1763367043508,-151.0,0.000249,7]
[394191017,1763367043518,-2083.224997,0.000249,7]
[394191018,1763367043527,-2083.224997,0.000249,7]
[394191019,1763367043536,-2083.224997,0.000249,7]
[394191020,1763367043546,-299.77192,0.000249,7]
[394191021,1763367043556,-2083.224997,0.000249,7]
[394191022,1763367043565,-299.77192,0.000249,7]
[394191023,1763367043576,-299.77192,0.000249,7]
[394191024,1763367043585,-299.77192,0.000249,7]
[394191025,1763367043594,-151.0,0.000249,2]
[394191026,1763367043603,-151.0,0.000249,2]
[394191027,1763367043612,-151.0,0.000249,2]
[394191028,1763367043623,-151.0,0.000249,7]
[394191029,1763367043633,-151.0,0.000249,7]
[394191030,1763367043646,-151.0,0.000249,7]
[394191031,1763367043655,-151.0,0.000249,7]
[394191032,1763367043665,-151.0,0.000249,7]
[394191033,1763367043674,-157.034861,0.000249,7]
[394191034,1763367043684,-229.347791,0.000249,7]
[394191035,1763367043694,-229.347791,0.000249,7]
[394191036,1763367043704,-229.347791,0.000249,7]
[394191037,1763367043715,-229.347791,0.000249,7]
[394191038,1763367043724,-151.0,0.000249,7]
[394191039,1763367043733,-151.0,0.000249,7]
[394191040,1763367043743,-630871.617331,0.000249,2]
[394191041,1763367043752,-151.0,0.000249,7]
[394191042,1763367043762,-151.0,0.000249,7]
[394191043,1763367043837,-151.0,0.000249,7]
[394191044,1763367043847,-151.0,0.000249,7]
[394191045,1763367043856,-2000.0,0.00025,7]
[394191046,1763367043866,-160.0,0.00025159,2]
[394191047,1763367043875,-400.67432439,0.00025159,2]
[394191048,1763367043885,-1000.0,0.00025193,20]
[394191049,1763367043896,-244.0,0.00025193,20]
[394191050,1763367043906,-500.0,0.00025205,2]
[394191051,1763367043916,-300.0,0.00025421,2]
[394191052,1763367043925,-1001.37329497,0.00025421,2]
[394191053,1763367043934,-1001.19443095,0.00025421,2]
[394191054,1763367043944,-501.54850908,0.00025421,2]
[394191055,1763367043954,-1000.0,0.00025421,2]
[394191056,1763367043964,-357.78598318,0.00025421,2]
[394191057,1763367043973,-1000.0,0.00025421,2]
[394191058,1763367043982,-1000.83212326,0.00025421,2]
[394191059,1763367043991,-1000.0,0.00025421,2]
[394191060,1763367044001,-450.0,0.00025968,2]
[394191061,1763367044011,-504.70574074,0.00025968,2]
[394191062,1763367044021,-541.04800509,0.00025968,2]
[394191063,1763367044030,-546.89520946,0.00025968,2]
[394191064,1763367044131,-889.62,0.00025968,2]
[394191065,1763367044454,-500.0,0.00016644,2]
[394191066,1763367044464,-550.7591181,0.00016644,2]
[394191067,1763367044474,-3875.75902461,0.00016644,2]
[394191068,1763367044490,-1425.45109733,0.00016644,2]
[394191069,1763367044499,-500.0,0.00016644,2]
[394191070,1763367044509,-500.0,0.00016644,2]
[394191071,1763367044519,-550.7591181,0.00016644,2]
[394191072,1763367044529,-500.0,0.00016644,2]
[394191073,1763367044539,-5301.21012194,0.00016644,2]
[394191074,1763367044548,-500.0,0.00016644,2]
[394191075,1763367044558,-5301.21012194,0.00016644,2]
[394191076,1763367044569,-500.0,0.00016644,2]
[394191077,1763367044578,-500.0,0.00016644,2]
[394191078,1763367044588,-550.7591181,0.00016644,2]
[394191079,1763367044597,-500.0,0.00016644,2]
[394191080,1763367044606,-5301.21012194,0.00016644,2]
[394191081,1763367044616,-500.0,0.00016644,2]
[394191082,1763367044625,-550.7591181,0.00016644,2]
[394191083,1763367044638,-500.0,0.00016644,2]
[394191084,1763367044647,-500.0,0.00016644,2]
[394191085,1763367044656,-500.0,0.00016644,2]
[394191086,1763367044666,-500.0,0.00016644,2]
[394191087,1763367044676,-500.0,0.00016644,2]
[394191088,1763367044685,-500.0,0.00016644,2]
[394191089,1763367044695,-182.79120886,0.00016644,2]
[394191090,1763367044704,-5301.21012194,0.00016644,2]
[394191091,1763367044714,-500.0,0.00016644,2]
[394191092,1763367044723,-500.0,0.00016644,2]
[394191093,1763367044732,-5301.21012194,0.00016644,2]
[394191094,1763367044742,-500.0,0.00016644,2]
[394191095,1763367044751,-5301.21012194,0.00016644,2]
[394191096,1763367044761,-500.0,0.00016644,2]
[394191097,1763367044770,-5301.21012194,0.00016644,2]
[394191098,1763367044779,-5301.21012194,0.00016644,2]
[394191099,1763367044789,-1000.0,0.00016759,2]
[394191100,1763367044798,-1000.0,0.00016759,2]
[394191101,1763367044807,-980.07536057,0.00016759,2]
[394191102,1763367044817,-63.48479054,0.00025968,2]
[394191103,1763367044894,-500.0,0.00026301,2]
[394191104,1763367044904,-600.0,0.00026516,2]
[394191105,1763367044914,-2000.0,0.00026516,2]
[394191106,1763367044924,-155.859905,0.00026568,2]
[394191107,1763367044934,-285.0,0.000266,2]
[394191108,1763367044943,-480.02152452,0.00026813,2]
[394191109,1763367044953,-450.63260107,0.00027064,2]
[394191110,1763367044962,-2500.0,0.00027064,2]
[394191111,1763367044972,-624.42180306,0.00027373,2]
[394191112,1763367044981,-500.0,0.00027373,2]
[394191113,1763367044990,-500.0,0.00027373,2]
[394191114,1763367045000,-500.0,0.00027373,2]
[394191115,1763367045009,-377.89329795,0.00027373,2]
[394191116,1763367045020,-500.0,0.00027373,2]
[394191117,1763367045031,-500.0,0.00027397,2]
[394191118,1763367045041,-151.0,0.00027397,7]
[394191119,1763367045051,-151.0,0.00027397,7]
[394191120,1763367045061,-151.0,0.00027397,7]
[394191121,1763367045071,-181.816039,0.00027397,7]
[394191122,1763367045080,-151.0,0.00027397,7]
[394191123,1763367045089,-151.0,0.00027397,7]
[394191124,1763367045099,-151.0,0.00027397,7]
[394191125,1763367045110,-151.0,0.00027397,7]
[394191126,1763367045119,-151.0,0.00027397,7]
[394191127,1763367045129,-151.0,0.00027397,7]
[394191128,1763367045139,-151.0,0.00027397,7]
[394191129,1763367045148,-151.0,0.00027397,7]
[394191130,1763367045158,-151.0,0.00027397,7]
[394191131,1763367045168,-151.0,0.00027397,7]
[394191132,1763367045178,-151.0,0.00027397,7]
[394191133,1763367045188,-151.0,0.00027397,7]
[394191134,1763367045198,-151.0,0.00027397,7]
[394191135,1763367045207,-151.0,0.00027397,7]
[394191136,1763367045216,-151.0,0.00027397,7]
[394191137,1763367045226,-180.641898,0.00027397,7]
[394191138,1763367045235,-151.0,0.00027397,7]
[394191139,1763367045244,-151.0,0.00027397,7]
[394191140,1763367045254,-151.0,0.00027397,7]
[394191141,1763367045264,-151.0,0.00027397,7]
[394191142,1763367045273,-151.0,0.00027397,7]
[394191143,1763367045282,-151.0,0.00027397,7]
[394191144,1763367045291,-151.0,0.00027397,7]
[394191145,1763367045300,-297.503538,0.00027397,7]
[394191146,1763367045310,-151.0,0.00027397,7]
[394191147,1763367045320,-151.0,0.00027397,7]
[394191148,1763367045329,-151.0,0.00027397,7]
[394191149,1763367045338,-151.0,0.00027397,7]
[394191150,1763367045348,-151.0,0.00027397,7]
[394191151,1763367045357,-151.0,0.00027397,7]
[394191152,1763367045366,-151.0,0.00027397,7]
[394191153,1763367045376,-155.09725,0.00027397,7]
[394191154,1763367045386,-151.0,0.00027397,7]
[394191155,1763367045395,-151.0,0.00027397,7]
[394191156,1763367045405,-151.0,0.00027397,7]
[394191157,1763367045414,-151.0,0.00027397,7]
[394191158,1763367045423,-151.0,0.00027397,7]
[394191159,1763367045432,-261.461551,0.00027397,7]
[394191160,1763367045442,-151.0,0.00027397,7]
[394191161,1763367045451,-151.0,0.00027397,7]
[394191162,1763367045460,-151.0,0.00027397,7]
[394191163,1763367045469,-179.300418,0.00027397,7]
[394191164,1763367045478,-151.0,0.00027397,7]
[394191165,1763367045487,-151.0,0.00027397,7]
[394191166,1763367045496,-151.0,0.00027397,7]
[394191167,1763367045506,-151.0,0.00027397,7]
[394191168,1763367045515,-235.532092,0.00027397,7]
[394191169,1763367045524,-151.0,0.00027397,7]
[394191170,1763367045533,-151.0,0.00027397,7]
[394191171,1763367045542,-151.0,0.00027397,7]
[394191172,1763367045551,-151.0,0.00027397,7]
[394191173,1763367045560,-170.76959,0.00027397,7]
[394191174,1763367045570,-170.76959,0.00027397,7]
[394191175,1763367045580,-170.76959,0.00027397,7]
[394191176,1763367045589,-170.76959,0.00027397,7]
[394191177,1763367045600,-170.76959,0.00027397,7]
[394191178,1763367045610,-170.76959,0.00027397,7]
[394191179,1763367045619,-170.76959,0.00027397,7]
[394191180,1763367045628,-170.76959,0.00027397,7]
[394191181,1763367045640,-151.0,0.00027397,7]
[394191182,1763367045650,-151.0,0.00027397,7]
[394191183,1763367045659,-151.0,0.00027397,7]
[394191184,1763367045668,-151.0,0.00027397,7]
[394191185,1763367045679,-151.0,0.00027397,7]
[394191186,1763367045688,-151.0,0.00027397,7]
[394191187,1763367045698,-151.0,0.00027397,7]
[394191188,1763367045707,-151.0,0.00027397,7]
[394191189,1763367045718,-341.668292,0.00027397,7]
[394191190,1763367045728,-341.668292,0.00027397,7]
[394191191,1763367045738,-188.454289,0.00027397,7]
[394191192,1763367045747,-188.454289,0.00027397,7]
[394191193,1763367045756,-188.454289,0.00027397,7]
[394191194,1763367045766,-188.454289,0.00027397,7]
[394191195,1763367045775,-188.454289,0.00027397,7]
[394191196,1763367045787,-188.454289,0.00027397,7]
[394191197,1763367045796,-188.454289,0.00027397,7]
[394191198,1763367045804,-188.454289,0.00027397,7]
[394191199,1763367045814,-151.0,0.00027397,7]
[394191200,1763367045824,-291.639899,0.00027397,7]
[394191201,1763367045833,-151.0,0.00027397,7]
[394191202,1763367045844,-161.108341,0.00027397,7]
[394191203,1763367045853,-151.0,0.00027397,7]
[394191204,1763367045863,-151.0,0.00027397,7]
[394191205,1763367045873,-151.0,0.00027397,7]
[394191206,1763367045882,-151.0,0.00027397,7]
[394191207,1763367045891,-151.0,0.00027397,7]
[394191208,1763367045900,-151.0,0.00027397,7]
[394191209,1763367045909,-151.0,0.00027397,7]
[394191210,1763367045919,-151.0,0.00027397,7]
[394191211,1763367045928,-151.0,0.00027397,7]
[394191212,1763367045938,-151.0,0.00027397,7]
[394191213,1763367045947,-171.22792,0.00027397,7]
[394191214,1763367045956,-151.0,0.00027397,7]
[394191215,1763367045966,-151.0,0.00027397,7]
[394191216,1763367045975,-151.0,0.00027397,7]
[394191217,1763367045984,-151.0,0.00027397,7]
[394191218,1763367045993,-151.0,0.00027397,7]
[394191219,1763367046002,-151.0,0.00027397,7]
[394191220,1763367046071,-151.0,0.00027397,7]
[394191221,1763367046081,-151.0,0.00027397,7]
[394191222,1763367046092,-151.0,0.00027397,7]
[394191223,1763367046102,-151.0,0.00027397,7]
[394191224,1763367046112,-151.0,0.00027397,7]
[394191225,1763367046122,-151.0,0.00027397,7]
[394191226,1763367046131,-151.0,0.00027397,7]
[394191227,1763367046140,-151.0,0.00027397,7]
[394191228,1763367046149,-151.0,0.00027397,7]
[394191229,1763367046158,-151.0,0.00027397,7]
[394191230,1763367046169,-151.0,0.00027397,7]
[394191231,1763367046178,-151.0,0.00027397,7]
[394191232,1763367046188,-151.0,0.00027397,7]
[394191233,1763367046197,-269.442677,0.00027397,7]
[394191234,1763367046206,-323.793845,0.00027397,7]
[394191235,1763367046215,-151.0,0.00027397,7]
[394191237,1763367046225,-151.0,0.00027397,7]
[394191238,1763367046234,-323.793845,0.00027397,7]
[394191240,1763367046243,-323.793845,0.00027397,7]
[394191241,1763367046252,-938.774569,0.00027397,7]
[394191242,1763367046260,-151.0,0.00027397,7]
[394191243,1763367046268,-323.793845,0.00027397,7]
[394191244,1763367046277,-938.774569,0.00027397,7]
[394191245,1763367046287,-151.0,0.00027397,7]
[394191247,1763367046296,-323.793845,0.00027397,7]
[394191248,1763367046305,-938.774569,0.00027397,7]
[394191249,1763367046315,-235.135254,0.00027397,7]
[394191250,1763367046325,-323.793845,0.00027397,7]
[394191251,1763367046334,-938.774569,0.00027397,7]
[394191252,1763367046343,-323.793845,0.00027397,7]
[394191253,1763367046352,-151.0,0.00027397,7]
[394191254,1763367046362,-323.793845,0.00027397,7]
[394191255,1763367046371,-938.774569,0.00027397,7]
[394191256,1763367046380,-151.0,0.00027397,7]
[394191257,1763367046390,-938.774569,0.00027397,7]
[394191258,1763367046400,-151.0,0.00027397,7]
[394191259,1763367046409,-938.774569,0.00027397,7]
[394191260,1763367046418,-151.0,0.00027397,7]
[394191261,1763367046428,-938.774569,0.00027397,7]
[394191262,1763367046438,-151.0,0.00027397,7]
[394191263,1763367046447,-290.891984,0.00027397,7]
[394191264,1763367046457,-500.0,0.00027397,7]
[394191265,1763367046466,-500.0,0.00027397,7]
[394191266,1763367046476,-500.0,0.00027397,7]
[394191267,1763367046485,-500.0,0.00027397,7]
[394191268,1763367046494,-500.0,0.00027397,7]
[394191269,1763367046504,-500.0,0.00027397,7]
[394191270,1763367046513,-500.0,0.00027397,7]
[394191271,1763367046523,-500.0,0.00027397,7]
[394191272,1763367046532,-204.122084,0.00027397,7]
[394191273,1763367046543,-204.122084,0.00027397,7]
[394191274,1763367046553,-204.122084,0.00027397,7]
[394191275,1763367046562,-204.122084,0.00027397,7]
[394191276,1763367046573,-204.122084,0.00027397,7]
[394191277,1763367046582,-204.122084,0.00027397,7]
[394191278,1763367046591,-204.122084,0.00027397,7]
[394191280,1763367046600,-204.122084,0.00027397,7]
[394191281,1763367046610,-184.962411,0.00027397,7]
[394191282,1763367046619,-184.962411,0.00027397,7]
[394191283,1763367046629,-184.962411,0.00027397,7]
[394191284,1763367046638,-184.962411,0.00027397,7]
[394191285,1763367046652,-151.0,0.00027397,7]
[394191286,1763367046662,-151.0,0.00027397,7]
[394191287,1763367046671,-184.962411,0.00027397,7]
[394191288,1763367046680,-151.0,0.00027397,7]
[394191289,1763367046689,-184.962411,0.00027397,7]
[394191290,1763367046699,-151.0,0.00027397,7]
[394191291,1763367046708,-184.962411,0.00027397,7]
[394191292,1763367046717,-184.962411,0.00027397,7]
[394191293,1763367046727,-151.0,0.00027397,7]
[394191294,1763367046738,-151.0,0.00027397,7]
[394191295,1763367046748,-151.0,0.00027397,7]
[394191296,1763367046758,-151.0,0.00027397,7]
[394191297,1763367046767,-151.0,0.00027397,7]
[394191298,1763367046776,-151.0,0.00027397,7]
[394191299,1763367046785,-151.0,0.00027397,7]
[394191300,1763367046795,-151.0,0.00027397,7]
[394191301,1763367046805,-151.0,0.00027397,7]
[394191302,1763367046814,-151.0,0.00027397,7]
[394191303,1763367046825,-151.0,0.00027397,7]
[394191304,1763367046835,-151.0,0.00027397,7]
[394191305,1763367046845,-151.0,0.00027397,7]
[394191308,1763367046854,-158.766102,0.00027397,7]
[394191310,1763367046863,-151.0,0.00027397,7]
[394191312,1763367046873,-286.859937,0.00027397,7]
[394191314,1763367046883,-151.0,0.00027397,7]
[394191316,1763367046892,-151.0,0.00027397,7]
[394191318,1763367046902,-151.0,0.00027397,7]
[394191320,1763367046912,-151.0,0.00027397,7]
[394191321,1763367046923,-347.148306,0.00027397,7]
[394191322,1763367046933,-151.0,0.00027397,7]
[394191323,1763367046943,-347.148306,0.00027397,7]
[394191324,1763367046953,-151.0,0.00027397,7]
[394191325,1763367046963,-347.148306,0.00027397,7]
[394191326,1763367046974,-347.148306,0.00027397,7]
[394191327,1763367046984,-347.148306,0.00027397,7]
[394191328,1763367046995,-347.148306,0.00027397,7]
[394191329,1763367047007,-347.148306,0.00027397,7]
[394191330,1763367047016,-347.148306,0.00027397,7]
[394191331,1763367047026,-439.391154,0.00027397,7]
[394191332,1763367047035,-439.391154,0.00027397,7]
[394191333,1763367047043,-439.391154,0.00027397,7]
[394191334,1763367047053,-439.391154,0.00027397,7]
[394191335,1763367047062,-439.391154,0.00027397,7]
[394191336,1763367047071,-439.391154,0.00027397,7]
[394191337,1763367047081,-439.391154,0.00027397,7]
[394191338,1763367047090,-439.391154,0.00027397,7]
[394191339,1763367047100,-151.0,0.00027397,7]
[394191340,1763367047164,-151.0,0.00027397,7]
[394191341,1763367047176,-151.0,0.00027397,7]
[394191342,1763367047187,-151.0,0.00027397,7]
[394191343,1763367047196,-151.0,0.00027397,7]
[394191344,1763367047206,-151.0,0.00027397,7]
[394191345,1763367047216,-151.0,0.00027397,7]
[394191346,1763367047227,-151.0,0.00027397,7]
[394191347,1763367047236,-151.0,0.00027397,7]
[394191348,1763367047246,-151.0,0.00027397,7]
[394191349,1763367047255,-151.0,0.00027397,7]
[394191350,1763367047265,-151.0,0.00027397,7]
[394191351,1763367047275,-151.0,0.00027397,7]
[394191352,1763367047285,-151.0,0.00027397,7]
[394191353,1763367047295,-151.0,0.00027397,7]
[394191354,1763367047305,-151.0,0.00027397,7]
[394191355,1763367047314,-151.0,0.00027397,7]
[394191356,1763367047324,-151.0,0.00027397,7]